bitfinex/quotes_SOLUSD_20250718
["timestamp","ask_amount","ask_price","bid_price","bid_amount"]
[1752841485492,41.75222862,179.07,179.06,0.03]
[1752841485686,42.10222862,179.07,179.06,0.03]
[1752841486316,41.75222862,179.07,179.06,0.03]
[1752841487222,34.10440833,179.07,179.06,0.75]
[1752841487603,41.75222862,179.07,179.06,0.03]
[1752841488909,46.78028946,179.07,179.06,0.03]
[1752841489418,42.10222862,179.07,179.06,1e-08]
[1752841489914,90.36762299,179.07,179.02,37.50929028]
[1752841490129,7.64782029,179.03,179.02,37.50929028]
[1752841490302,36.51782029,179.03,179.02,37.50929028]
[1752841491294,42.10347632,179.03,179.02,37.50929028]
[1752841496107,42.10347632,179.03,179.02,0.03]
[1752841496704,49.54785323,179.03,179.02,0.03]
[1752841498096,54.57591407,179.03,179.02,0.03]
[1752841498411,63.91622113,179.03,179.02,1e-08]
[1752841498608,7.4443769,179.02,178.98,0.03]
[1752841498807,7.64782029,178.99,178.98,0.03]
[1752841498995,36.16782029,178.99,178.98,0.03]
[1752841499417,36.30435461,178.99,178.98,0.03]
[1752841499617,36.44088893,178.99,178.98,0.03]
[1752841500011,42.02779322,178.99,178.98,0.03]
[1752841500314,34.37997293,178.99,178.98,0.72]
[1752841500515,41.75472458,178.99,178.98,0.72]
[1752841500717,41.75472458,178.99,178.98,0.03]
[1752841501095,41.75472458,178.99,178.98,0.72]
[1752841501298,34.10690429,178.99,178.98,0.72]
[1752841501518,41.75472458,178.99,178.98,0.72]
[1752841501899,41.75472458,178.99,178.98,0.03]
[1752841502503,49.5768107,178.99,178.98,0.03]
[1752841502697,49.9268107,178.99,178.98,0.03]
[1752841502914,46.5064328,178.99,178.98,0.03]
[1752841503115,47.8127321,178.99,178.98,0.03]
[1752841503404,38.54811726,178.99,178.98,0.03]
[1752841503617,37.47411959,178.99,178.98,0.03]
[1752841504027,37.82411959,178.99,178.98,0.03]
[1752841504527,43.41102388,178.99,178.98,0.03]
[1752841504823,66.96076495,178.99,178.98,0.03]
[1752841506098,49.16161583,178.99,178.98,0.03]
[1752841506412,13.23472458,178.99,178.98,0.72]
[1752841509222,30.01940855,178.99,178.98,1e-08]
[1752841509424,16.78468397,178.98,178.96,0.2]
[1752841509725,46.68865332,178.97,178.96,0.2]
[1752841510827,43.57306901,178.97,178.96,0.2]
[1752841511202,49.16059764,178.97,178.96,0.2]
[1752841512650,13.23534892,178.97,178.96,0.89]
[1752841513217,5.58690429,178.99,178.96,0.89]
[1752841513435,7.64782029,178.98,178.97,0.69]
[1752841513646,5.58690429,178.99,178.96,0.2]
[1752841513808,5.58690429,178.99,178.98,0.69]
[1752841514113,13.23472458,178.99,178.98,0.69]
[1752841514315,5.58690429,178.99,178.98,0.69]
[1752841514517,13.23472458,178.99,178.98,0.69]
[1752841514928,5.58668983,179.0,178.98,0.69]
[1752841515140,13.34018149,179.01,178.98,0.69]
[1752841515308,13.34018149,179.01,178.98,6.7903]
[1752841515507,13.34018149,179.01,178.99,0.69]
[1752841516149,18.92650584,179.01,179.0,0.69]
[1752841517054,26.57432613,179.01,179.0,0.69]
[1752841518249,18.92650584,179.01,178.98,0.69]
[1752841518448,7.64782029,178.99,178.98,0.69]
[1752841519245,7.64782029,178.99,178.97,1.5059]
[1752841519546,7.64782029,178.98,178.96,0.2]
[1752841519743,7.64782029,178.97,178.96,0.89]
[1752841520120,13.23534892,178.97,178.96,0.89]
[1752841520857,18.26197301,178.97,178.96,0.2]
[1752841521020,10.61415272,178.97,178.96,0.2]
[1752841521221,13.23534892,178.97,178.96,0.89]
[1752841521621,18.26197301,178.97,178.96,0.2]
[1752841524147,18.61197301,178.97,178.96,0.2]
[1752841524857,18.26197301,178.97,178.96,0.2]
[1752841525523,5.58752863,178.97,178.96,0.2]
[1752841525723,13.23534892,178.97,178.96,0.2]
[1752841525927,18.26197301,178.97,178.96,0.2]
[1752841526523,64.01665698,178.97,178.96,0.2]
[1752841529026,63.66665698,178.97,178.96,0.2]
[1752841529245,64.01665698,178.97,178.96,0.2]
[1752841529750,56.01883669,178.97,178.96,0.2]
[1752841529950,13.23534892,178.97,178.96,0.2]
[1752841530126,13.23534892,178.97,178.96,0.9]
[1752841530654,13.23534892,178.97,178.96,0.2]
[1752841531146,5.58752863,178.97,178.96,0.2]
[1752841531325,13.23534892,178.97,178.96,0.2]
[1752841531526,13.58534892,178.97,178.96,0.2]
[1752841531724,30.37003289,178.97,178.96,0.2]
[1752841531949,36.75912255,178.97,178.96,1e-08]
[1752841532149,18.95915945,178.96,178.94,0.03]
[1752841532355,36.32782029,178.95,178.94,0.03]
[1752841533162,41.9159734,178.95,178.94,0.03]
[1752841533445,36.44262859,178.95,178.94,0.03]
[1752841533632,44.09044888,178.95,178.94,0.03]
[1752841534450,41.9159734,178.95,178.94,0.73]
[1752841534650,34.26815311,178.95,178.94,0.73]
[1752841534953,13.2359734,178.95,178.94,0.03]
[1752841535167,5.58815311,178.95,178.94,0.73]
[1752841535355,13.2359734,178.95,178.94,0.73]
[1752841535752,5.58815311,178.95,178.94,0.73]
[1752841535955,13.2359734,178.95,178.94,0.73]
[1752841536479,13.2359734,178.95,178.94,0.03]
[1752841536828,5.58815311,178.95,178.94,0.03]
[1752841537030,13.2359734,178.95,178.94,0.03]
[1752841537358,19.62506306,178.95,178.94,0.03]
[1752841537961,21.79953854,178.95,178.94,0.03]
[1752841538250,5.58815311,178.95,178.94,0.73]
[1752841538453,13.2359734,178.95,178.94,0.03]
[1752841538845,22.14953854,178.95,178.94,0.03]
[1752841539158,19.62506306,178.95,178.94,0.03]
[1752841539334,13.2359734,178.95,178.94,0.03]
[1752841539735,5.58815311,178.95,178.94,0.73]
[1752841540458,7.64782029,178.96,178.94,0.73]
[1752841540641,7.64782029,178.96,178.94,0.03]
[1752841540836,7.64782029,178.95,178.94,0.03]
[1752841541569,7.64782029,178.95,178.94,0.73]
[1752841541777,7.64782029,178.95,178.94,0.03]
[1752841542642,13.2359734,178.95,178.94,0.03]
[1752841543337,30.37065737,178.95,178.94,0.03]
[1752841543540,38.93422251,178.95,178.94,1e-08]
[1752841543765,42.78468397,178.93,178.92,0.2]
[1752841543963,81.40697974,178.93,178.92,0.2]
[1752841544283,88.1460694,178.93,178.92,0.2]
[1752841544638,93.73484713,178.93,178.92,0.2]
[1752841545046,93.38484713,178.93,178.92,0.2]
[1752841545463,0.06,178.97,178.92,8.54782029]
[1752841545665,0.06,178.97,178.96,7.64782029]
[1752841545968,0.06,178.97,178.95,7.64782029]
[1752841546163,0.06,178.97,178.95,0.7]
[1752841546465,5.64758023,178.97,178.96,0.7]
[1752841548249,13.29540052,178.97,178.94,6.7911]
[1752841548458,7.64782029,178.96,178.94,0.7]
[1752841549164,5.58815311,178.95,178.92,0.2]
[1752841549339,5.58815311,178.95,178.92,7.84782029]
[1752841549671,0.06,178.97,178.93,7.64782029]
[1752841549850,0.06,178.97,178.94,0.7]
[1752841550253,5.64763928,178.97,178.94,0.7]
[1752841550450,0.06,178.97,178.94,8.34782029]
[1752841550639,5.64760597,178.97,178.95,0.7]
[1752841550845,5.64760597,178.97,178.96,0.7]
[1752841551045,13.29542626,178.97,178.96,0.7]
[1752841551248,7.70782029,178.97,178.92,8.54782029]
[1752841551445,7.70782029,178.97,178.93,0.7]
[1752841551646,0.06,178.97,178.94,0.7]
[1752841552049,0.06,178.97,178.92,0.2]
[1752841552256,7.70782029,178.97,178.94,0.7]
[1752841552470,7.70782029,178.97,178.92,0.2]
[1752841552471,0.06,178.97,178.95,0.7]
[1752841552674,7.70782029,178.97,178.95,0.7]
[1752841553353,5.58784085,178.96,178.95,0.7]
[1752841553550,5.58784085,178.96,178.92,7.84782029]
[1752841554251,5.58784085,178.96,178.93,0.66]
[1752841554769,0.06,178.97,178.93,0.66]
[1752841555145,7.70782029,178.97,178.93,0.66]
[1752841555668,0.06,178.97,178.93,8.30782029]
[1752841555868,0.06,178.97,178.94,0.66]
[1752841557376,0.06,178.97,178.94,8.30782029]
[1752841557563,0.06,178.97,178.95,8.30782029]
[1752841558072,0.06,178.97,178.96,0.66]
[1752841562255,7.70782029,178.97,178.93,0.66]
[1752841562455,7.70782029,178.97,178.94,0.66]
[1752841562761,7.64782029,178.95,178.92,0.2]
[1752841562970,7.64782029,178.95,178.93,0.66]
[1752841563168,7.64782029,178.96,178.94,0.66]
[1752841563388,7.64782029,178.95,178.94,0.66]
[1752841563696,7.64782029,178.95,178.92,0.2]
[1752841563979,7.64782029,178.95,178.93,0.66]
[1752841564175,13.23622107,178.95,178.94,0.66]
[1752841564962,5.58840078,178.95,178.94,0.66]
[1752841565160,13.23622107,178.95,178.94,0.66]
[1752841565584,0.06,178.97,178.94,0.66]
[1752841565760,0.06,178.97,178.95,7.64782029]
[1752841566080,0.06,178.97,178.96,0.66]
[1752841569484,0.06,178.97,178.96,8.30782029]
[1752841569864,0.06,178.97,178.96,7.64782029]
[1752841570064,0.06,178.97,178.96,8.30782029]
[1752841570663,0.06,178.97,178.96,13.89566114]
[1752841572467,0.06,179.01,178.97,16.78468397]
[1752841572782,0.06,179.01,179.0,7.64782029]
[1752841572980,0.06,179.01,178.98,30.23872164]
[1752841573279,0.06,179.01,179.0,7.64782029]
[1752841573487,0.06,179.01,178.99,8.30782029]
[1752841573796,0.06,179.01,179.0,7.64782029]
[1752841573963,0.06,179.01,179.0,8.30782029]
[1752841575692,0.06,179.01,179.0,26.66]
[1752841575882,0.06,179.01,179.0,34.30782029]
[1752841576075,0.06,179.01,179.0,39.89441246]
[1752841576277,0.06,179.09,179.05,1.5085]
[1752841576573,0.06,179.09,179.05,9.15632029]
[1752841576771,0.06,179.09,179.06,8.30782029]
[1752841577191,0.06,179.09,179.07,0.66]
[1752841577568,0.06,179.09,179.08,0.66]
[1752841578580,0.06,179.09,179.08,8.30782029]
[1752841578970,0.06,179.09,179.07,7.64782029]
[1752841579175,0.06,179.09,179.08,0.66]
[1752841579369,0.06,179.09,179.06,0.66]
[1752841579586,7.70782029,179.09,179.06,0.66]
[1752841579988,7.70782029,179.09,179.07,0.66]
[1752841580217,0.06,179.09,179.07,0.66]
[1752841580580,0.06,179.09,179.08,0.66]
[1752841581296,13.29162835,179.09,179.04,36.64782029]
[1752841581596,7.64782029,179.06,179.04,0.66]
[1752841582377,13.23255485,179.06,179.02,0.66]
[1752841582580,13.23255485,179.06,179.03,0.66]
[1752841583095,7.64782029,179.08,179.04,0.66]
[1752841583316,7.64782029,179.08,179.05,0.66]
[1752841583601,5.64387531,179.09,179.06,0.66]
[1752841583776,13.2916956,179.09,179.07,0.71]
[1752841584097,7.64782029,179.08,179.05,0.71]
[1752841584473,13.2916956,179.09,179.06,0.71]
[1752841585698,13.23199687,179.08,179.03,7.64782029]
[1752841585998,13.23199687,179.08,179.04,0.71]
[1752841586174,13.23199687,179.08,179.03,7.64782029]
[1752841586376,13.23199687,179.08,179.05,0.71]
[1752841587798,7.64782029,179.06,179.03,0.71]
[1752841588188,7.64782029,179.07,179.03,0.71]
[1752841588590,7.64782029,179.07,179.04,0.71]
[1752841588991,13.23225143,179.07,179.04,0.71]
[1752841590100,13.23225143,179.07,179.02,8.35782029]
[1752841590292,13.23225143,179.07,179.03,0.71]
[1752841591483,0.06,179.09,179.04,0.71]
[1752841591792,7.64782029,179.07,179.04,0.71]
[1752841592307,13.23191678,179.08,179.03,7.64782029]
[1752841592493,13.23191678,179.08,179.05,0.71]
[1752841593997,7.64782029,179.08,179.05,0.71]
[1752841594402,0.06,179.09,179.05,0.71]
[1752841594778,7.64782029,179.08,179.05,0.71]
[1752841594991,13.23216422,179.08,179.05,0.71]
[1752841596184,0.06,179.09,179.05,0.71]
[1752841596402,7.64782029,179.08,179.05,0.71]
[1752841596903,0.06,179.09,179.06,0.71]
[1752841597208,0.06,179.09,179.08,7.64782029]
[1752841597501,0.06,179.09,179.08,0.71]
[1752841598901,0.06,179.09,179.08,8.35782029]
[1752841599303,0.06,179.09,179.08,41.55721678]
[1752841599500,0.06,179.09,179.08,28.3253]
[1752841599809,0.06,179.09,179.08,41.55721678]
[1752841600396,0.06,179.09,179.08,35.97312029]
[1752841600595,0.06,179.09,179.08,41.55721678]
[1752841600908,0.06,179.09,179.08,35.97312029]
[1752841603603,0.06,179.09,179.08,64.87312029]
[1752841604008,0.06,179.09,179.08,31.2253]
[1752841604413,0.06,179.09,179.07,6.3939]
[1752841604620,0.06,179.09,179.08,0.71]
[1752841605114,0.06,179.09,179.08,8.35782029]
[1752841605822,0.06,179.09,179.08,13.94191678]
[1752841607510,0.06,179.09,179.08,6.29409649]
[1752841607710,0.06,179.09,179.08,13.94191678]
[1752841609011,0.06,179.09,179.08,8.35782029]
[1752841609407,0.06,179.09,179.08,26.71]
[1752841609724,0.06,179.09,179.08,26.0]
[1752841610244,0.06,179.09,179.07,7.64782029]
[1752841610529,0.06,179.09,179.07,8.35782029]
[1752841611516,0.06,179.09,179.06,28.88]
[1752841612214,7.70782029,179.09,179.06,28.88]
[1752841612415,7.70782029,179.09,179.04,9.20722029]
[1752841612416,0.47,179.09,179.03,6.9367]
[1752841612622,7.64782029,179.06,179.03,29.61]
[1752841612923,7.64782029,179.04,179.0,0.03]
[1752841613126,7.64782029,179.01,179.0,0.03]
[1752841613328,7.24517494,179.01,179.0,0.03]
[1752841613505,7.64782029,179.01,179.0,0.03]
[1752841613832,15.30299523,179.01,179.0,0.03]
[1752841614005,41.30299523,179.01,179.0,0.03]
[1752841614206,33.65517494,179.01,179.0,0.03]
[1752841614408,41.30299523,179.01,179.0,0.03]
[1752841615014,46.88927532,179.01,179.0,0.03]
[1752841617206,54.53709561,179.01,179.0,0.03]
[1752841617432,46.88927532,179.01,179.0,0.03]
[1752841618412,39.23410038,179.01,179.0,0.03]
[1752841618911,39.64410038,179.01,179.0,0.03]
[1752841619628,31.99628009,179.01,179.0,0.03]
[1752841619832,39.64410038,179.01,179.0,0.03]
[1752841620729,39.23410038,179.01,179.0,0.03]
[1752841621730,13.2328524,179.05,179.0,8.37782029]
[1752841621928,7.64782029,179.04,179.01,0.7]
[1752841622115,5.58503211,179.05,179.0,0.03]
[1752841622116,7.64782029,179.03,179.0,0.03]
[1752841622310,7.64782029,179.01,179.0,0.03]
[1752841622515,5.58628009,179.01,179.0,0.03]
[1752841622817,13.23410038,179.01,179.0,0.03]
[1752841623218,5.58628009,179.01,179.0,0.03]
[1752841623534,13.23410038,179.01,179.0,0.03]
[1752841623915,5.58628009,179.01,179.0,0.03]
[1752841624123,12.83145503,179.01,179.0,0.03]
[1752841624312,20.47927532,179.01,179.0,0.03]
[1752841625811,13.23410038,179.01,179.0,0.03]
[1752841627608,13.64410038,179.01,179.0,0.03]
[1752841627813,43.79943784,179.01,179.0,0.03]
[1752841628112,26.0,178.98,178.97,0.03]
[1752841628312,86.02556413,178.98,178.97,1e-08]
[1752841628522,86.28798281,178.98,178.97,1e-08]
[1752841628722,93.53315775,178.98,178.97,1e-08]
[1752841628937,85.88533746,178.98,178.97,1e-08]
[1752841629232,93.53315775,178.98,178.97,1e-08]
[1752841629819,26.0,178.94,178.93,0.03]
[1752841630018,76.35847378,178.94,178.93,1e-08]
[1752841630220,5.13287529,178.93,178.92,0.2]
[1752841630436,13.19069558,178.93,178.92,0.2]
[1752841631314,19.31617413,178.93,178.92,0.2]
[1752841631510,22.10377409,178.93,178.92,0.2]
[1752841631735,27.69255182,178.93,178.92,0.2]
[1752841631924,26.0,178.91,178.9,0.03]
[1752841632116,33.64782029,178.91,178.9,0.03]
[1752841632316,84.41629407,178.91,178.9,0.03]
[1752841632513,76.76847378,178.91,178.9,0.03]
[1752841632933,70.64299523,178.91,178.9,0.03]
[1752841633743,68.55722278,178.91,178.9,0.03]
[1752841634314,39.23722278,178.91,178.9,0.03]
[1752841634524,31.58940249,178.91,178.9,0.03]
[1752841634817,39.64722278,178.91,178.9,0.03]
[1752841635020,53.42052162,178.91,178.9,0.03]
[1752841635341,60.66569656,178.91,178.9,0.03]
[1752841635539,53.01787627,178.91,178.9,0.03]
[1752841636139,60.66569656,178.91,178.9,0.03]
[1752841636544,91.42388676,178.91,178.86,0.03]
[1752841636728,33.64782029,178.87,178.86,0.03]
[1752841636921,63.38782029,178.87,178.86,0.03]
[1752841637127,64.33591859,178.87,178.86,0.03]
[1752841637518,80.58250426,178.87,178.86,1e-08]
[1752841637724,16.78468397,178.85,178.84,0.03]
[1752841637923,60.30023762,178.85,178.84,0.03]
[1752841638117,60.71023762,178.85,178.84,0.03]
[1752841638317,67.41679013,178.85,178.84,0.03]
[1752841639337,35.3112776,178.85,178.84,0.03]
[1752841639522,42.95909789,178.85,178.84,0.03]
[1752841640118,13.23909789,178.85,178.84,0.03]
[1752841640312,42.95909789,178.85,178.84,0.03]
[1752841641134,60.15378186,178.85,178.84,0.03]
[1752841641730,67.39679013,178.85,178.84,0.03]
[1752841642924,20.48210616,178.85,178.84,0.03]
[1752841643124,42.95909789,178.85,178.84,0.03]
[1752841643427,5.5912776,178.85,178.84,0.03]
[1752841643734,13.23909789,178.85,178.84,0.74]
[1752841643933,7.64782029,178.86,178.84,0.74]
[1752841644138,24.02769224,178.9,178.84,0.74]
[1752841644336,26.0,178.87,178.84,0.74]
[1752841644638,39.23856371,178.87,178.84,0.74]
[1752841644946,39.23856371,178.87,178.85,0.71]
[1752841647932,43.86547345,178.9,178.88,0.71]
[1752841648132,43.86547345,178.9,178.85,12.27570821]
[1752841648133,38.27570821,178.91,178.89,0.71]
[1752841648338,26.0,178.91,178.89,0.71]
[1752841648532,26.0,178.91,178.87,12.27570821]
[1752841648736,26.0,178.91,178.9,0.71]
[1752841649341,5.58934096,178.92,178.9,0.71]
[1752841649545,17.86504917,178.92,178.91,0.71]
[1752841649749,43.86457496,178.93,178.91,0.71]
[1752841650146,43.86457496,178.93,178.92,0.71]
[1752841651045,31.58886675,178.93,178.9,0.71]
[1752841651352,26.0,178.93,178.91,0.71]
[1752841651570,12.27570821,178.94,178.91,0.71]
[1752841652055,0.06,178.95,178.91,12.98570821]
[1752841652232,0.06,178.95,178.92,0.71]
[1752841652548,0.06,178.95,178.93,0.71]
[1752841652732,12.33570821,178.95,178.93,0.71]
[1752841653068,19.57871648,178.95,178.94,0.71]
[1752841653358,7.30300827,178.95,178.94,0.71]
[1752841653541,12.33570821,178.95,178.94,0.71]
[1752841653746,0.06,178.95,178.94,0.71]
[1752841654647,12.33570821,178.95,178.94,0.71]
[1752841654826,0.06,178.95,178.94,0.71]
[1752841655027,17.92386132,178.95,178.92,1.6625]
[1752841655255,12.27570821,178.93,178.92,1.6625]
[1752841655458,12.27570821,178.94,178.93,0.71]
[1752841655767,0.06,178.95,178.94,0.71]
[1752841655944,31.58687031,179.0,178.94,12.98570821]
[1752841656142,12.27570821,179.0,178.95,12.98570821]
[1752841656358,51.48100772,179.01,178.96,0.71]
[1752841656542,39.20529951,179.01,178.96,12.98570821]
[1752841656747,51.48100772,179.01,178.97,0.71]
[1752841656951,12.27570821,178.99,178.97,0.71]
[1752841657161,12.27570821,178.99,178.98,0.71]
[1752841657376,18.79162782,179.01,178.98,0.71]
[1752841657552,12.27570821,179.0,178.98,0.71]
[1752841657755,32.05632831,179.01,178.95,0.71]
[1752841658564,31.58632831,179.01,178.96,12.27570821]
[1752841658756,43.86203652,179.01,178.97,0.71]
[1752841659078,43.86203652,179.01,178.98,0.71]
[1752841659278,12.27570821,178.99,178.96,0.71]
[1752841659566,0.06,179.02,178.97,0.71]
[1752841659797,26.06,179.02,178.97,12.98570821]
[1752841659951,38.33570821,179.02,178.97,12.27570821]
[1752841660153,38.33570821,179.02,178.98,0.71]
[1752841660645,31.64599316,179.02,178.98,0.71]
[1752841660850,12.27570821,179.01,178.99,0.71]
[1752841661370,12.27570821,179.0,178.97,0.71]
[1752841661593,12.27570821,179.01,178.98,0.71]
[1752841662051,12.27570821,179.01,178.99,0.71]
[1752841662251,12.33570821,179.02,179.0,0.71]
[1752841662466,12.33570821,179.02,179.01,0.71]
[1752841663086,0.06,179.02,179.01,0.71]
[1752841666393,0.06,179.02,179.01,12.98570821]
[1752841666606,0.06,179.02,179.01,0.71]
[1752841671602,0.06,179.02,179.01,8.36819683]
[1752841671900,0.06,179.02,179.01,13.95447692]
[1752841672379,0.06,179.02,179.01,6.29628009]
[1752841672574,0.06,179.02,179.01,13.95447692]
[1752841673087,0.06,179.02,179.01,6.29628009]
[1752841673284,0.06,179.02,179.01,13.95447692]
[1752841674771,0.06,179.02,179.01,0.71]
[1752841676603,0.06,179.02,179.01,37.88819683]
[1752841677607,0.06,179.02,179.01,43.47447692]
[1752841677811,7.71819683,179.06,179.02,16.78468397]
[1752841677812,0.06,179.06,179.02,16.78468397]
[1752841678027,0.06,179.06,179.05,7.65819683]
[1752841678189,0.06,179.06,179.05,37.15819683]
[1752841678395,0.06,179.06,179.05,37.86819683]
[1752841678588,0.06,179.06,179.05,43.45322894]
[1752841682018,0.06,179.06,179.05,60.23791291]
[1752841683494,0.06,179.06,179.05,37.86819683]
[1752841684709,0.06,179.06,179.05,38.42670004]
[1752841685407,0.06,179.06,179.02,8.36819683]
[1752841685604,13.30291703,179.06,179.03,29.46]
[1752841686908,7.65819683,179.05,179.03,29.46]
[1752841687617,13.24346082,179.05,179.03,29.46]
[1752841687827,5.58526399,179.05,179.03,29.46]
[1752841689021,5.58526399,179.05,179.03,30.17]
[1752841689222,0.06,179.06,179.04,8.36819683]
[1752841689421,0.06,179.06,179.05,30.15]
[1752841692220,5.64389471,179.09,179.05,30.15]
[1752841692525,0.06,179.09,179.05,30.15]
[1752841692726,7.65819683,179.08,179.06,0.71]
[1752841692897,7.65819683,179.08,179.05,29.44]
[1752841693096,7.65819683,179.06,179.05,29.44]
[1752841694425,7.65819683,179.06,179.02,0.71]
[1752841694426,13.24291703,179.06,179.02,0.71]
[1752841694612,7.65819683,179.05,179.03,29.4]
[1752841695616,5.58511078,179.05,179.03,29.4]
[1752841695818,5.58511078,179.05,179.03,30.11]
[1752841697636,5.58440833,179.07,179.03,30.11]
[1752841697838,7.65819683,179.05,179.03,30.11]
[1752841698033,7.65819683,179.05,179.03,29.4]
[1752841698744,10.28012153,179.04,179.02,0.03]
[1752841698929,7.65819683,179.03,179.02,0.03]
[1752841699337,9.75012153,179.03,179.02,0.03]
[1752841699530,14.66465752,179.03,179.02,0.03]
[1752841699851,20.78031355,179.03,179.02,0.03]
[1752841700045,20.25031355,179.03,179.02,0.03]
[1752841700449,13.24385286,179.03,179.02,0.03]
[1752841700634,7.65819683,179.05,179.02,0.74]
[1752841700957,7.65819683,179.04,179.02,0.74]
[1752841702344,7.65819683,179.03,179.02,0.03]
[1752841703647,13.77385286,179.03,179.02,0.03]
[1752841704951,13.24385286,179.03,179.02,0.03]
[1752841707352,5.58565603,179.03,179.02,0.03]
[1752841707661,13.24385286,179.03,179.02,0.03]
[1752841707956,5.5847202,179.06,179.02,0.71]
[1752841708129,7.65819683,179.04,179.03,0.68]
[1752841708754,7.65819683,179.04,179.02,0.03]
[1752841708957,7.65819683,179.03,179.02,0.71]
[1752841709456,8.18819683,179.03,179.02,0.03]
[1752841709654,34.18819683,179.03,179.02,0.03]
[1752841709828,41.19465752,179.03,179.02,0.03]
[1752841711134,46.78031355,179.03,179.02,0.03]
[1752841711856,46.25031355,179.03,179.02,0.03]
[1752841712052,39.24385286,179.03,179.02,0.03]
[1752841712860,39.77385286,179.03,179.02,0.03]
[1752841713452,56.55853683,179.03,179.02,0.03]
[1752841713840,62.68401538,179.03,179.02,0.03]
[1752841716043,76.64815546,179.03,178.98,0.03]
[1752841716359,7.65819683,178.99,178.98,0.03]
[1752841717153,8.18819683,178.99,178.98,0.03]
[1752841717642,13.77510112,178.99,178.98,0.03]
[1752841718776,13.24510112,178.99,178.98,0.03]
[1752841722355,5.58690429,178.99,178.98,0.03]
[1752841722553,7.65819683,178.99,178.98,0.71]
[1752841723473,7.65819683,178.99,178.98,0.03]
[1752841723974,13.77510112,178.99,178.98,0.03]
[1752841724342,62.68526364,178.99,178.98,1e-08]
[1752841724543,13.13193924,178.98,178.91,2.3384]
[1752841724748,7.65819683,178.92,178.89,0.68]
[1752841725078,0.53,178.96,178.9,0.68]
[1752841725281,7.65819683,178.91,178.9,0.68]
[1752841726672,13.24759932,178.91,178.88,0.68]
[1752841726966,7.65819683,178.89,178.87,1.663]
[1752841727551,7.65819683,178.88,178.87,1.663]
[1752841727759,7.65819683,178.87,178.84,37.54701267]
[1752841728272,7.65819683,178.86,178.85,0.68]
[1752841728450,12.57273282,178.86,178.85,0.68]
[1752841728844,12.57273282,178.86,178.84,37.54701267]
[1752841729051,7.65819683,178.85,178.84,38.22701267]
[1752841729265,7.65819683,178.85,178.84,37.72701267]
[1752841729464,7.65819683,178.86,178.84,37.72701267]
[1752841729661,7.65819683,178.85,178.84,37.72701267]
[1752841730653,7.65819683,178.85,178.84,37.04701267]
[1752841731471,12.57273282,178.85,178.84,37.04701267]
[1752841731675,12.57273282,178.85,178.83,0.03]
[1752841731868,11.8404037,178.84,178.83,0.03]
[1752841732072,14.66465752,178.84,178.83,0.03]
[1752841732274,20.25624776,178.84,178.83,0.03]
[1752841732456,12.59805093,178.84,178.83,0.03]
[1752841732653,13.24978707,178.84,178.83,0.03]
[1752841733066,7.65819683,178.84,178.83,0.03]
[1752841733265,13.24978707,178.84,178.83,0.03]
[1752841733467,13.77978707,178.84,178.83,0.03]
[1752841733670,18.69596559,178.84,178.83,0.03]
[1752841734383,35.48064956,178.84,178.83,0.03]
[1752841736255,10.50776876,178.84,178.83,0.03]
[1752841736455,5.59159024,178.84,178.83,0.03]
[1752841736660,13.24978707,178.84,178.83,0.03]
[1752841736965,13.77978707,178.84,178.83,0.03]
[1752841737355,37.18172618,178.84,178.83,0.03]
[1752841739266,33.43316431,178.84,178.83,0.03]